fUSD/lending_fUSD_20250916
["ID","MTS","AMOUNT","RATE_DAILY","PERIOD"]
[385849343,1758059542410,-774.02,0.00034307,5]
[385849344,1758059542420,-400.0,0.00034307,6]
[385849345,1758059542430,-400.0,0.00034307,6]
[385849346,1758059542440,-500.0,0.00034311,7]
[385849347,1758059542450,-500.0,0.00034345,7]
[385849348,1758059542460,-1200.0,0.00034414,7]
[385849349,1758059542469,-500.0,0.00034422,7]
[385849350,1758059542481,-1200.0,0.00034436,7]
[385849351,1758059542490,-1100.0,0.00034446,7]
[385849352,1758059542500,-500.0,0.00034477,7]
[385849353,1758059542510,-2058.39,0.00034481,6]
[385849354,1758059542519,-400.0,0.00034481,6]
[385849355,1758059542529,-412.53,0.00034481,6]
[385849356,1758059542539,-618.61,0.00034481,6]
[385849357,1758059542549,-1651.68,0.00034481,6]
[385849358,1758059542558,-2717.2,0.00034481,6]
[385849359,1758059542568,-400.0,0.00034481,6]
[385849360,1758059542578,-462.71,0.00034481,6]
[385849361,1758059542588,-400.0,0.00034481,6]
[385849362,1758059542598,-400.0,0.00034481,6]
[385849363,1758059542608,-400.0,0.00034481,6]
[385849364,1758059542622,-251.092776,0.00034481,7]
[385849365,1758059542631,-151.0,0.00034481,7]
[385849366,1758059542641,-158.691709,0.00034481,7]
[385849367,1758059542650,-151.0,0.00034481,7]
[385849368,1758059542659,-151.0,0.00034481,7]
[385849369,1758059542669,-156.577676,0.00034481,7]
[385849370,1758059542678,-151.0,0.00034481,7]
[385849371,1758059542688,-151.0,0.00034481,7]
[385849372,1758059542697,-151.0,0.00034481,7]
[385849373,1758059542707,-151.0,0.00034481,7]
[385849374,1758059542716,-151.0,0.00034481,7]
[385849375,1758059542725,-151.0,0.00034481,7]
[385849376,1758059542735,-151.0,0.00034481,7]
[385849377,1758059542747,-151.0,0.00034481,7]
[385849378,1758059542757,-151.0,0.00034481,7]
[385849379,1758059542766,-151.0,0.00034481,7]
[385849380,1758059542776,-151.0,0.00034481,7]
[385849381,1758059542786,-151.0,0.00034481,7]
[385849382,1758059542795,-151.0,0.00034481,7]
[385849383,1758059542804,-151.0,0.00034481,7]
[385849384,1758059542814,-191.959255,0.00034481,7]
[385849385,1758059542823,-151.0,0.00034481,7]
[385849386,1758059542833,-3231.76,0.00034481,6]
[385849387,1758059542843,-151.0,0.00034481,7]
[385849388,1758059542852,-151.0,0.00034481,7]
[385849389,1758059542862,-203.827112,0.00034481,7]
[385849390,1758059542872,-436.89,0.00034481,6]
[385849391,1758059542882,-1512.22409374,0.00034483,2]
[385849392,1758059542891,-315.42552183,0.00034484,2]
[385849393,1758059542901,-230.45,0.00034487,60]
[385849394,1758059542911,-1200.0,0.00034491,7]
[385849395,1758059542921,-8023.33187065,0.00034499,2]
[385849396,1758059542930,-485.67,0.00034518,6]
[385849397,1758059542940,-400.0,0.00034518,6]
[385849398,1758059542949,-467.8,0.00034518,6]
[385849399,1758059542958,-400.0,0.00034519,6]
[385849400,1758059542967,-467.83,0.00034519,6]
[385849401,1758059542977,-400.0,0.00034519,6]
[385849402,1758059542986,-400.0,0.00034519,6]
[385849403,1758059542996,-453.02,0.00034519,6]
[385849404,1758059543006,-893.66,0.00034519,6]
[385849405,1758059543015,-421.96702453,0.00034519,6]
[385849406,1758059543025,-400.0,0.00034519,6]
[385849407,1758059543034,-400.0,0.00034519,6]
[385849408,1758059543043,-404.97,0.00034519,6]
[385849409,1758059543053,-431.58,0.00034519,6]
[385849410,1758059543063,-564.94,0.00034519,6]
[385849411,1758059543073,-400.0,0.00034519,6]
[385849412,1758059543082,-475.93,0.00034519,6]
[385849413,1758059543092,-646.81,0.00034519,6]
[385849414,1758059543101,-400.0,0.00034519,6]
[385849415,1758059543111,-400.0,0.00034519,6]
[385849416,1758059543121,-503.49,0.00034519,6]
[385849417,1758059543131,-555.18,0.00034519,6]
[385849418,1758059543140,-493.67,0.00034519,6]
[385849419,1758059543151,-406.48,0.00034519,6]
[385849420,1758059543161,-400.0,0.00034519,6]
[385849421,1758059543171,-472.57,0.00034519,6]
[385849422,1758059543182,-566.4,0.00034519,6]
[385849423,1758059543191,-443.11,0.00034519,6]
[385849424,1758059543201,-556.41,0.00034519,6]
[385849425,1758059543211,-642.62,0.00034519,6]
[385849426,1758059543221,-526.48,0.00034519,6]
[385849427,1758059543230,-638.73,0.00034519,6]
[385849428,1758059543240,-400.0,0.00034519,6]
[385849429,1758059543252,-514.99,0.00034519,6]
[385849430,1758059543262,-477.56,0.00034519,6]
[385849431,1758059543271,-400.0,0.00034519,6]
[385849432,1758059543281,-824.84,0.00034519,6]
[385849433,1758059543291,-558.91,0.00034519,6]
[385849434,1758059543302,-429.04,0.00034519,6]
[385849435,1758059543312,-771.88,0.00034519,6]
[385849436,1758059543321,-400.0,0.00034519,6]
[385849437,1758059543331,-456.11,0.00034519,6]
[385849438,1758059543340,-422.65,0.00034519,6]
[385849439,1758059543351,-400.0,0.00034519,6]
[385849440,1758059543361,-400.0,0.00034519,6]
[385849441,1758059543371,-400.0,0.00034519,6]
[385849442,1758059543381,-682.71,0.00034519,6]
[385849443,1758059543392,-792.25,0.00034519,6]
[385849444,1758059543407,-1411.58,0.00034519,6]
[385849445,1758059543417,-678.71,0.00034519,6]
[385849446,1758059543429,-876.88,0.00034519,6]
[385849447,1758059543440,-922.72,0.00034519,6]
[385849448,1758059543450,-590.13,0.00034519,6]
[385849449,1758059543459,-741.55,0.00034519,6]
[385849450,1758059543470,-400.0,0.00034519,6]
[385849451,1758059543480,-400.0,0.00034519,6]
[385849452,1758059543490,-400.0,0.00034519,6]
[385849453,1758059543500,-923.03,0.00034519,6]
[385849454,1758059543509,-400.0,0.0003452,6]
[385849455,1758059543519,-210.36982045,0.0003452,6]
[385849456,1758059543529,-446.83,0.0003452,6]
[385849457,1758059543539,-467.43546365,0.0003452,6]
[385849458,1758059543549,-547.28,0.0003452,6]
[385849459,1758059543558,-400.0,0.0003452,6]
[385849460,1758059543568,-400.0,0.0003452,6]
[385849461,1758059543577,-404.16,0.0003452,6]
[385849462,1758059543588,-528.17,0.0003452,6]
[385849463,1758059543598,-542.9,0.0003452,6]
[385849464,1758059543609,-854.5,0.0003452,6]
[385849465,1758059543619,-403.43,0.0003452,6]
[385849466,1758059543628,-400.0,0.0003452,6]
[385849467,1758059543639,-400.0,0.0003452,6]
[385849468,1758059543651,-400.0,0.0003452,6]
[385849469,1758059543660,-400.0,0.0003452,6]
[385849470,1758059543670,-400.0,0.0003452,6]
[385849471,1758059543679,-400.0,0.0003452,6]
[385849472,1758059543689,-425.79,0.0003452,6]
[385849473,1758059543699,-440.62,0.0003452,6]
[385849474,1758059543708,-627.06,0.0003452,6]
[385849475,1758059543718,-400.0,0.0003452,6]
[385849476,1758059543728,-404.88,0.0003452,6]
[385849477,1758059543737,-550.75,0.0003452,6]
[385849478,1758059543747,-482.27,0.0003452,6]
[385849479,1758059543756,-597.91,0.0003452,6]
[385849480,1758059543766,-400.0,0.0003452,6]
[385849481,1758059543775,-489.33,0.0003452,6]
[385849482,1758059543785,-400.0,0.0003452,6]
[385849483,1758059543794,-400.44,0.0003452,6]
[385849484,1758059543804,-432.89,0.0003452,6]
[385849485,1758059543814,-1630.47,0.0003452,6]
[385849486,1758059543824,-329.34219628,0.0003452,6]
[385849487,1758059543833,-400.0,0.0003452,6]
[385849488,1758059543843,-464.0,0.0003452,6]
[385849489,1758059543853,-541.51,0.0003452,6]
[385849490,1758059543863,-400.0,0.0003452,120]
[385849491,1758059543872,-400.0,0.0003452,6]
[385849492,1758059543882,-431.13,0.0003452,6]
[385849493,1758059543891,-666.3,0.0003452,6]
[385849494,1758059543900,-400.0,0.0003452,6]
[385849495,1758059543909,-400.0,0.0003452,6]
[385849496,1758059543919,-400.0,0.0003452,6]
[385849497,1758059543929,-547.93,0.0003452,6]
[385849498,1758059543939,-400.0,0.0003452,6]
[385849499,1758059543949,-474.55,0.0003452,6]
[385849500,1758059543958,-445.76,0.0003452,6]
[385849501,1758059543968,-400.0,0.0003452,6]
[385849502,1758059543978,-681.13,0.0003452,6]
[385849503,1758059543987,-520.69,0.0003452,6]
[385849504,1758059543997,-400.0,0.0003452,6]
[385849505,1758059544007,-402.9,0.0003452,6]
[385849506,1758059544016,-400.0,0.0003452,6]
[385849507,1758059544026,-400.0,0.0003452,6]
[385849508,1758059544036,-400.0,0.0003452,6]
[385849509,1758059544046,-438.72,0.0003452,6]
[385849510,1758059544055,-930.22,0.0003452,6]
[385849511,1758059544065,-520.75,0.0003452,6]
[385849512,1758059544075,-400.0,0.0003452,6]
[385849513,1758059544085,-691.69,0.0003452,6]
[385849514,1758059544094,-541.46,0.0003452,6]
[385849515,1758059544104,-840.93,0.0003452,6]
[385849516,1758059544114,-531.61,0.0003452,6]
[385849517,1758059544123,-286.25,0.0003452,6]
[385849518,1758059544133,-528.41,0.0003452,6]
[385849519,1758059544144,-400.0,0.0003452,6]
[385849520,1758059544154,-3105.74,0.0003452,6]
[385849521,1758059544163,-400.0,0.0003452,6]
[385849522,1758059544173,-593.33,0.0003452,6]
[385849523,1758059544264,-530.57,0.0003452,6]
[385849524,1758059544274,-400.0,0.0003452,6]
[385849525,1758059544283,-801.13,0.0003452,6]
[385849526,1758059544293,-400.0,0.0003452,6]
[385849527,1758059544303,-400.0,0.0003452,6]
[385849528,1758059544312,-400.0,0.0003452,6]
[385849529,1758059544322,-720.72,0.0003452,6]
[385849530,1758059544331,-450.36,0.0003452,6]
[385849531,1758059544340,-400.0,0.0003452,6]
[385849532,1758059544350,-400.0,0.0003452,6]
[385849533,1758059544360,-455.66,0.0003452,6]
[385849534,1758059544369,-255.1044528,0.0003452,6]
[385849535,1758059544379,-400.0,0.0003452,6]
[385849536,1758059544389,-400.0,0.0003452,6]
[385849537,1758059544402,-541.5497417,0.0003452,6]
[385849538,1758059544412,-452.15,0.0003452,6]
[385849539,1758059544421,-599.86,0.0003452,6]
[385849540,1758059544430,-1299.74,0.0003452,6]
[385849541,1758059544440,-572.67,0.0003452,6]
[385849542,1758059544450,-400.0,0.0003452,6]
[385849543,1758059544460,-422.38,0.0003452,6]
[385849544,1758059544470,-400.0,0.0003452,6]
[385849545,1758059544482,-404.16,0.0003452,6]
[385849546,1758059544492,-400.0,0.0003452,6]
[385849547,1758059544502,-400.0,0.0003452,6]
[385849548,1758059544511,-400.0,0.0003452,6]
[385849549,1758059544521,-924.76,0.0003452,6]
[385849550,1758059544530,-1289.24,0.0003452,6]
[385849551,1758059544539,-554.69,0.0003452,6]
[385849552,1758059544548,-400.0,0.0003452,6]
[385849553,1758059544558,-799.13,0.0003452,6]
[385849554,1758059544568,-467.79,0.0003452,6]
[385849555,1758059544577,-943.71,0.0003452,6]
[385849556,1758059544587,-562.81,0.0003452,6]
[385849557,1758059544596,-617.84,0.0003452,6]
[385849558,1758059544606,-1554.92,0.0003452,6]
[385849559,1758059544615,-472.52,0.0003452,6]
[385849560,1758059544625,-502.44,0.0003452,6]
[385849561,1758059544634,-2454.26,0.0003452,6]
[385849562,1758059544643,-400.0,0.0003452,6]
[385849563,1758059544652,-814.45,0.0003452,6]
[385849564,1758059544662,-581.21,0.0003452,6]
[385849565,1758059544670,-400.0,0.0003452,6]
[385849566,1758059544679,-2151.75,0.0003452,6]
[385849567,1758059544689,-400.0,0.0003452,6]
[385849568,1758059544699,-590.85,0.0003452,6]
[385849569,1758059544709,-400.0,0.0003452,6]
[385849570,1758059544719,-576.61,0.0003452,6]
[385849571,1758059544728,-616.64,0.0003452,6]
[385849572,1758059544738,-151.0,0.0003452,7]
[385849573,1758059544747,-151.0,0.0003452,7]
[385849574,1758059544756,-151.0,0.0003452,7]
[385849575,1758059544766,-151.0,0.0003452,7]
[385849576,1758059544775,-151.0,0.0003452,7]
[385849577,1758059544785,-426.57,0.0003452,6]
[385849578,1758059544794,-151.0,0.0003452,7]
[385849579,1758059544803,-151.0,0.0003452,7]
[385849580,1758059544813,-151.0,0.0003452,7]
[385849581,1758059544823,-151.0,0.0003452,7]
[385849582,1758059544832,-151.0,0.0003452,7]
[385849583,1758059544841,-151.0,0.0003452,7]
[385849584,1758059544851,-151.0,0.0003452,7]
[385849585,1758059544860,-151.0,0.0003452,7]
[385849586,1758059544870,-160.428636,0.0003452,7]
[385849587,1758059544879,-2554.31,0.0003452,6]
[385849588,1758059544889,-695.75,0.0003452,6]
[385849589,1758059544898,-152.922855,0.0003452,7]
[385849590,1758059544907,-862.95,0.0003452,6]
[385849591,1758059544916,-400.0,0.0003452,6]
[385849592,1758059544925,-465.42,0.0003452,6]
[385849593,1758059544934,-528.3,0.0003452,6]
[385849594,1758059544943,-629.46,0.0003452,6]
[385849595,1758059544953,-402.58,0.0003452,6]
[385849596,1758059544963,-760.02,0.0003452,6]
[385849597,1758059544973,-400.0,0.0003452,6]
[385849598,1758059544982,-573.15,0.0003452,6]
[385849599,1758059544991,-400.0,0.0003452,6]
[385849600,1758059545000,-555.71,0.0003452,6]
[385849601,1758059545009,-400.0,0.0003452,6]
[385849602,1758059545018,-151.847984,0.0003452,7]
[385849603,1758059545028,-479.18,0.0003452,6]
[385849604,1758059545037,-447.53,0.0003452,6]
[385849605,1758059545046,-418.11,0.0003452,6]
[385849606,1758059545056,-435.17,0.0003452,6]
[385849607,1758059545065,-450.0,0.0003452,6]
[385849608,1758059545074,-423.89,0.0003452,6]
[385849609,1758059545084,-400.0,0.0003452,6]
[385849610,1758059545094,-400.0,0.0003452,6]
[385849611,1758059545103,-255.41484,0.0003452,7]
[385849612,1758059545112,-778.74,0.0003452,6]
[385849613,1758059545123,-704.61,0.0003452,6]
[385849614,1758059545132,-1172.18,0.0003452,6]
[385849615,1758059545144,-5286.95,0.0003452,6]
[385849616,1758059545154,-400.0,0.0003452,6]
[385849617,1758059545164,-400.0,0.0003452,6]
[385849618,1758059545174,-542.4,0.0003452,6]
[385849619,1758059545183,-400.0,0.0003452,6]
[385849620,1758059545194,-400.0,0.0003452,6]
[385849621,1758059545203,-400.0,0.0003452,6]
[385849622,1758059545214,-435.09,0.0003452,6]
[385849623,1758059545223,-527.52,0.0003452,6]
[385849624,1758059545233,-551.22,0.0003452,6]
[385849625,1758059545243,-400.0,0.0003452,6]
[385849626,1758059545254,-400.0,0.0003452,6]
[385849627,1758059545263,-160.0,0.0003452,14]
[385849628,1758059545272,-160.0,0.0003452,14]
[385849629,1758059545281,-160.0,0.0003452,14]
[385849630,1758059545290,-160.0,0.0003452,14]
[385849631,1758059545300,-160.0,0.0003452,14]
[385849632,1758059545309,-160.0,0.0003452,14]
[385849633,1758059545318,-160.0,0.0003452,14]
[385849634,1758059545326,-160.0,0.0003452,14]
[385849635,1758059545335,-483.09,0.0003452,6]
[385849636,1758059545345,-160.0,0.0003452,14]
[385849637,1758059545354,-160.0,0.0003452,14]
[385849638,1758059545363,-160.0,0.0003452,14]
[385849639,1758059545372,-777.85,0.0003452,6]
[385849640,1758059545382,-160.0,0.0003452,14]
[385849641,1758059545393,-160.0,0.0003452,14]
[385849642,1758059545403,-400.0,0.0003452,6]
[385849643,1758059545414,-160.0,0.0003452,14]
[385849644,1758059545423,-445.13,0.0003452,6]
[385849645,1758059545433,-160.0,0.0003452,14]
[385849646,1758059545442,-160.0,0.0003452,14]
[385849647,1758059545453,-510.44,0.0003452,6]
[385849648,1758059545462,-160.0,0.0003452,14]
[385849649,1758059545471,-160.0,0.0003452,14]
[385849650,1758059545481,-160.0,0.0003452,14]
[385849651,1758059545492,-160.0,0.0003452,14]
[385849652,1758059545502,-160.0,0.0003452,14]
[385849653,1758059545511,-160.0,0.0003452,14]
[385849654,1758059545520,-160.0,0.0003452,14]
[385849655,1758059545529,-160.0,0.0003452,14]
[385849656,1758059545539,-650.71,0.0003452,6]
[385849657,1758059545548,-160.0,0.0003452,14]
[385849658,1758059545557,-160.0,0.0003452,14]
[385849659,1758059545566,-160.0,0.0003452,14]
[385849660,1758059545576,-400.0,0.0003452,6]
[385849661,1758059545585,-632.37,0.0003452,6]
[385849662,1758059545595,-160.0,0.0003452,14]
[385849663,1758059545604,-160.0,0.0003452,14]
[385849664,1758059545614,-160.0,0.0003452,14]
[385849665,1758059545623,-160.0,0.0003452,14]
[385849666,1758059545632,-160.0,0.0003452,14]
[385849667,1758059545641,-400.0,0.0003452,6]
[385849668,1758059545650,-185.641559,0.0003452,6]
[385849669,1758059545659,-160.0,0.0003452,14]
[385849670,1758059545668,-160.0,0.0003452,14]
[385849671,1758059545677,-160.0,0.0003452,14]
[385849672,1758059545687,-160.0,0.0003452,14]
[385849673,1758059545696,-400.0,0.0003452,6]
[385849674,1758059545706,-160.0,0.0003452,14]
[385849675,1758059545715,-763.55,0.0003452,6]
[385849676,1758059545724,-400.0,0.0003452,6]
[385849677,1758059545733,-160.0,0.0003452,14]
[385849678,1758059545742,-160.0,0.0003452,14]
[385849679,1758059545752,-160.0,0.0003452,14]
[385849680,1758059545761,-160.0,0.0003452,14]
[385849681,1758059545770,-160.0,0.0003452,14]
[385849682,1758059545780,-160.0,0.0003452,14]
[385849683,1758059545789,-160.0,0.0003452,14]
[385849684,1758059545798,-160.0,0.0003452,14]
[385849685,1758059545807,-160.0,0.0003452,14]
[385849686,1758059545817,-160.0,0.0003452,14]
[385849687,1758059545826,-160.0,0.0003452,14]
[385849688,1758059545835,-160.0,0.0003452,14]
[385849689,1758059545845,-160.0,0.0003452,14]
[385849690,1758059545854,-701.89,0.0003452,6]
[385849691,1758059545864,-160.0,0.0003452,14]
[385849692,1758059545873,-160.0,0.0003452,14]
[385849693,1758059545883,-160.0,0.0003452,14]
[385849694,1758059545892,-160.0,0.0003452,14]
[385849695,1758059545901,-160.0,0.0003452,14]
[385849696,1758059545911,-160.0,0.0003452,14]
[385849697,1758059545920,-548.46570268,0.0003452,6]
[385849698,1758059545930,-160.0,0.0003452,14]
[385849699,1758059545940,-160.0,0.0003452,14]
[385849700,1758059545949,-160.0,0.0003452,14]
[385849701,1758059545959,-796.09,0.0003452,6]
[385849702,1758059545969,-160.0,0.0003452,14]
[385849703,1758059545979,-160.0,0.0003452,14]
[385849704,1758059545991,-160.0,0.0003452,14]
[385849705,1758059546000,-160.0,0.0003452,14]
[385849706,1758059546010,-160.0,0.0003452,14]
[385849707,1758059546020,-160.0,0.0003452,14]
[385849708,1758059546029,-160.0,0.0003452,14]
[385849709,1758059546039,-620.92,0.0003452,6]
[385849710,1758059546049,-160.0,0.0003452,14]
[385849711,1758059546059,-160.0,0.0003452,14]
[385849712,1758059546068,-400.0,0.0003452,6]
[385849713,1758059546078,-160.0,0.0003452,14]
[385849714,1758059546088,-160.0,0.0003452,14]
[385849715,1758059546097,-160.0,0.0003452,14]
[385849716,1758059546106,-160.0,0.0003452,14]
[385849717,1758059546116,-160.0,0.0003452,14]
[385849718,1758059546126,-160.0,0.0003452,14]
[385849719,1758059546135,-160.0,0.0003452,14]
[385849720,1758059546145,-160.0,0.0003452,14]
[385849721,1758059546155,-160.0,0.0003452,14]
[385849722,1758059546164,-400.0,0.0003452,6]
[385849723,1758059546174,-160.0,0.0003452,14]
[385849724,1758059546183,-160.0,0.0003452,14]
[385849725,1758059546193,-160.0,0.0003452,14]
[385849726,1758059546202,-252.17517877,0.0003452,6]
[385849727,1758059546212,-160.0,0.0003452,14]
[385849728,1758059546221,-160.0,0.0003452,14]
[385849729,1758059546231,-160.0,0.0003452,14]
[385849730,1758059546240,-160.0,0.0003452,14]
[385849731,1758059546249,-178.73623047,0.0003452,6]
[385849732,1758059546258,-160.0,0.0003452,14]
[385849733,1758059546268,-160.0,0.0003452,14]
[385849734,1758059546277,-160.0,0.0003452,14]
[385849735,1758059546286,-160.0,0.0003452,14]
[385849736,1758059546296,-160.0,0.0003452,14]
[385849737,1758059546306,-160.0,0.0003452,14]
[385849738,1758059546315,-160.0,0.0003452,14]
[385849739,1758059546325,-160.0,0.0003452,14]
[385849740,1758059546334,-160.0,0.0003452,14]
[385849741,1758059546344,-160.0,0.0003452,14]
[385849742,1758059546354,-160.0,0.0003452,14]
[385849743,1758059546363,-160.0,0.0003452,14]
[385849744,1758059546373,-160.0,0.0003452,14]
[385849745,1758059546383,-160.0,0.0003452,14]
[385849746,1758059546392,-400.0,0.0003452,6]
[385849747,1758059546403,-160.0,0.0003452,14]
[385849748,1758059546413,-745.62,0.0003452,6]
[385849749,1758059546426,-160.0,0.0003452,14]
[385849750,1758059546435,-447.35,0.0003452,6]
[385849751,1758059546445,-629.24,0.0003452,6]
[385849752,1758059546455,-400.0,0.0003452,6]
[385849753,1758059546466,-400.0,0.0003452,6]
[385849754,1758059546476,-936.1,0.0003452,6]
[385849755,1758059546485,-400.0,0.0003452,6]
[385849756,1758059546496,-1215.29,0.0003452,6]
[385849757,1758059546506,-400.0,0.0003452,6]
[385849758,1758059546517,-400.0,0.0003452,6]
[385849759,1758059546527,-470.35,0.0003452,6]
[385849760,1758059546536,-400.0,0.0003452,6]
[385849761,1758059546546,-722.71,0.0003452,6]
[385849762,1758059546555,-400.0,0.0003452,6]
[385849763,1758059546565,-656.3,0.0003452,6]
[385849764,1758059546574,-1790.44,0.0003452,6]
[385849765,1758059546584,-400.0,0.0003452,6]
[385849766,1758059546594,-400.0,0.0003452,6]
[385849767,1758059546603,-400.0,0.0003452,6]
[385849768,1758059546613,-1382.16,0.0003452,6]
[385849769,1758059546623,-429.26,0.0003452,6]
[385849770,1758059546632,-1005.55,0.0003452,6]
[385849771,1758059546642,-400.0,0.0003452,6]
[385849772,1758059546652,-690.12,0.0003452,6]
[385849773,1758059546661,-400.0,0.0003452,6]
[385849774,1758059546671,-607.8,0.0003452,6]
[385849775,1758059546680,-1101.76,0.0003452,6]
[385849776,1758059546690,-348.67518431,0.0003452,6]
[385849777,1758059546700,-671.41,0.0003452,6]
[385849778,1758059546711,-644.78,0.0003452,6]
[385849779,1758059546721,-400.0,0.0003452,6]
[385849780,1758059546730,-783.19,0.0003452,6]
[385849781,1758059546741,-467.3,0.0003452,6]
[385849782,1758059546751,-450.16,0.0003452,6]
[385849783,1758059546761,-400.0,0.0003452,6]
[385849784,1758059546771,-400.0,0.0003452,6]
[385849785,1758059546780,-1181.9,0.0003452,6]
[385849786,1758059546790,-431.77,0.0003452,6]
[385849787,1758059546800,-1421.99,0.0003452,6]
[385849788,1758059546810,-604.53,0.0003452,6]
[385849789,1758059546820,-190.03782933,0.0003452,6]
[385849790,1758059546829,-417.22,0.0003452,6]
[385849791,1758059546839,-633.44,0.0003452,6]
[385849792,1758059546850,-500.0,0.00034562,7]
[385849793,1758059546860,-839.09243417,0.0003457,2]
[385849794,1758059546870,-1200.0,0.00034572,7]
[385849795,1758059546879,-500.0,0.0003458,7]
[385849796,1758059546889,-392.94820096,0.00034581,6]
[385849797,1758059546899,-892.92,0.00034581,6]
[385849798,1758059546909,-568.06,0.00034581,6]
[385849799,1758059546920,-1072.67,0.00034581,6]
[385849800,1758059546931,-512.55,0.00034581,6]
[385849801,1758059546940,-774.02,0.00034581,5]
[385849802,1758059546951,-400.0,0.00034581,6]
[385849803,1758059546962,-400.0,0.00034581,6]
[385849804,1758059546972,-230.45,0.00034587,60]
[385849805,1758059546982,-2464.92,0.000346,14]
[385849806,1758059546993,-500.0,0.00034605,7]
[385849807,1758059547004,-1024.44975094,0.0003462,2]
[385849808,1758059547014,-9057.83353144,0.00034621,2]
[385849809,1758059547024,-4000.0,0.00034639,4]
[385849810,1758059547034,-230.45,0.00034687,60]
[385849811,1758059547044,-1100.0,0.00034695,7]
[385849812,1758059547053,-684.03,0.0003471,2]
[385849813,1758059547063,-500.0,0.00034712,7]
[385849814,1758059547074,-500.0,0.00034727,7]
[385849815,1758059547085,-1100.0,0.00034746,7]
[385849816,1758059547096,-2058.39,0.00034755,6]
[385849817,1758059547106,-247.46,0.00034755,6]
[385849818,1758059547117,-412.53,0.00034755,6]
[385849819,1758059547126,-618.61,0.00034755,6]
[385849820,1758059547136,-1651.68,0.00034755,6]
[385849821,1758059547146,-2717.2,0.00034755,6]
[385849822,1758059547156,-169.4,0.00034755,6]
[385849823,1758059547166,-462.71,0.00034755,6]
[385849824,1758059547178,-400.0,0.00034755,6]
[385849825,1758059547190,-400.0,0.00034755,6]
[385849826,1758059547202,-400.0,0.00034755,6]
[385849827,1758059547218,-3231.76,0.00034755,6]
[385849828,1758059547228,-436.89,0.00034755,6]
[385849829,1758059547238,-1400.0,0.00034756,7]
[385849830,1758059547248,-500.0,0.00034762,7]
[385849831,1758059547258,-230.45,0.00034787,60]
[385849832,1758059547272,-500.0,0.00034789,7]
[385849833,1758059547282,-485.67,0.00034792,6]
[385849834,1758059547293,-400.0,0.00034792,6]
[385849835,1758059547304,-467.8,0.00034792,6]
[385849836,1758059547315,-400.0,0.00034793,6]
[385849837,1758059547327,-467.83,0.00034793,6]
[385849838,1758059547336,-400.0,0.00034793,6]
[385849839,1758059547346,-473.00237958,0.00034793,6]
[385849840,1758059547355,-453.02,0.00034793,6]
[385849841,1758059547365,-893.66,0.00034793,6]
[385849842,1758059547375,-400.0,0.00034793,6]